bitfinex-derivatives/quotes_BTCF0:USTF0_20241128
["timestamp","ask_amount","ask_price","bid_price","bid_amount"]
[1732778661809,0.14992,95765.0,95764.0,0.26469285]
[1732778662007,0.14992,95765.0,95764.0,0.31686985]
[1732778662008,0.202097,95765.0,95764.0,0.31686985]
[1732778662410,0.052177,95765.0,95764.0,0.31686985]
[1732778662905,0.054177,95765.0,95764.0,0.052177]
[1732778663108,0.054177,95765.0,95764.0,0.31682627]
[1732778663701,0.054177,95765.0,95764.0,0.06694334]
[1732778665214,0.054177,95765.0,95764.0,0.31644627]
[1732778665511,0.054177,95765.0,95764.0,0.31640848]
[1732778665813,0.054177,95765.0,95764.0,0.06694334]
[1732778667307,0.054177,95765.0,95764.0,0.31627361]
[1732778667610,0.054177,95765.0,95764.0,0.06094334]
[1732778669111,0.054177,95765.0,95764.0,0.26407638]
[1732778669322,0.054177,95765.0,95763.0,0.24931004]
[1732778669609,0.052174,95762.0,95761.0,0.24931004]
[1732778669813,0.052174,95762.0,95761.0,0.26394497]
[1732778670614,0.052174,95762.0,95761.0,0.01463493]
[1732778671317,0.052174,95762.0,95761.0,0.06680893]
[1732778671513,0.002,95765.0,95764.0,0.052172]
[1732778671820,0.002,95765.0,95764.0,0.06680693]
[1732778672618,0.002,95765.0,95764.0,0.53363155]
[1732778672910,0.05217,95768.0,95764.0,0.48145955]
[1732778673109,0.05217,95768.0,95767.0,0.05217]
[1732778673314,0.05217,95768.0,95767.0,0.06680493]
[1732778674317,0.05617,95768.0,95767.0,0.06680493]
[1732778674713,0.05617,95768.0,95767.0,0.42760493]
[1732778676216,0.05617,95768.0,95767.0,0.4273973]
[1732778676519,0.004,95768.0,95767.0,0.4273973]
[1732778678823,0.004,95768.0,95767.0,0.44670281]
[1732778679418,0.004,95768.0,95767.0,0.79218814]
[1732778679613,0.004,95768.0,95767.0,1.22312809]
[1732778680015,0.004,95768.0,95767.0,0.93488756]
[1732778680213,0.004,95768.0,95767.0,0.4806358]
[1732778680514,0.004,95768.0,95767.0,0.44670281]
[1732778680721,0.004,95768.0,95767.0,0.48063617]
[1732778680923,0.004,95768.0,95767.0,0.49042446]
[1732778681119,0.004,95768.0,95767.0,0.92137587]
[1732778681316,0.004,95768.0,95767.0,1.22287033]
[1732778681518,0.004,95768.0,95767.0,0.44670281]
[1732778681721,0.004,95768.0,95767.0,0.48063636]
[1732778682027,0.004,95768.0,95767.0,0.44670281]
[1732778682221,0.004,95768.0,95767.0,0.48063638]
[1732778682420,0.004,95768.0,95767.0,0.47463638]
[1732778682623,0.004,95768.0,95767.0,0.92875741]
[1732778682920,0.004,95768.0,95767.0,0.89482384]
[1732778683129,0.004,95768.0,95767.0,0.92875576]
[1732778683314,0.004,95768.0,95767.0,0.89097905]
[1732778683516,0.004,95768.0,95767.0,0.92875646]
[1732778684522,0.004,95768.0,95767.0,0.93859515]
[1732778685023,0.01887191,95779.0,95778.0,0.052164]
[1732778685218,0.01887191,95779.0,95778.0,0.31575865]
[1732778685420,0.01887191,95779.0,95778.0,0.42750778]
[1732778685816,0.01887191,95779.0,95778.0,0.412964]
[1732778686622,0.01887191,95779.0,95778.0,0.414964]
[1732778687429,0.07103591,95779.0,95778.0,0.42951062]
[1732778688622,0.07103591,95779.0,95778.0,0.414964]
[1732778688824,0.07103591,95779.0,95778.0,0.42842579]
[1732778689023,0.07103591,95779.0,95778.0,0.42842578]
[1732778690424,0.07303591,95779.0,95778.0,0.42842578]
[1732778691228,0.00211989,95779.0,95778.0,0.42842578]
[1732778691419,0.0313,95789.0,95788.0,0.052159]
[1732778691822,0.0313,95789.0,95788.0,0.30141203]
[1732778692123,0.083458,95789.0,95788.0,0.30141203]
[1732778692630,0.083458,95789.0,95788.0,0.06648332]
[1732778694033,0.086458,95789.0,95788.0,0.06648332]
[1732778695325,0.0343,95789.0,95788.0,0.06648332]
[1732778695830,0.0343,95789.0,95788.0,0.066427]
[1732778696226,0.0343,95789.0,95788.0,0.052159]
[1732778697533,0.0343,95789.0,95788.0,0.06042985]
[1732778700629,0.003,95789.0,95788.0,0.06242985]
[1732778701639,0.003,95789.0,95788.0,0.06246962]
[1732778702040,0.0001283,95791.0,95788.0,0.01631062]
[1732778702236,0.0001283,95791.0,95790.0,0.052158]
[1732778702632,0.0001283,95791.0,95790.0,0.0664257]
[1732778702826,0.0001283,95791.0,95790.0,0.37800023]
[1732778703032,0.0001283,95791.0,95790.0,0.80842343]
[1732778703234,0.0001283,95791.0,95790.0,0.4968489]
[1732778703437,0.0001283,95791.0,95790.0,0.37780088]
[1732778703637,0.0001283,95791.0,95790.0,0.0664257]
[1732778704139,0.0522853,95791.0,95790.0,0.0664257]
[1732778704329,0.0522853,95791.0,95790.0,0.0142677]
[1732778704530,0.052158,95789.0,95788.0,0.007]
[1732778704732,0.052162,95782.0,95780.0,0.31137518]
[1732778704945,0.052158,95789.0,95779.0,0.24923162]
[1732778704946,0.052163,95780.0,95779.0,0.24923162]
[1732778705133,0.052167,95774.0,95773.0,0.24923162]
[1732778705334,0.052167,95774.0,95772.0,0.24923162]
[1732778705537,0.3608,95773.0,95772.0,0.24923162]
[1732778705728,0.052168,95772.0,95770.0,0.00156612]
[1732778705932,0.052169,95769.0,95766.0,0.24923162]
[1732778706237,0.052169,95769.0,95767.0,0.35923162]
[1732778706537,0.052169,95769.0,95767.0,0.11]
[1732778706746,0.091889,95770.0,95766.0,0.24923162]
[1732778707039,0.05217,95768.0,95766.0,0.24923162]
[1732778707430,0.05217,95768.0,95767.0,0.24923162]
[1732778707739,0.05217,95768.0,95767.0,0.003]
[1732778707943,0.05217,95768.0,95767.0,0.006]
[1732778708235,0.05217,95768.0,95767.0,0.003]
[1732778708438,0.05217,95768.0,95767.0,0.25226823]
[1732778709140,0.05217,95768.0,95767.0,0.25526823]
[1732778709341,0.05217,95768.0,95767.0,0.006]
[1732778709537,0.05217,95768.0,95767.0,0.25526823]
[1732778710144,0.05217,95768.0,95767.0,0.006]
[1732778710536,0.01945888,95774.0,95767.0,0.68004]
[1732778710740,0.3608,95802.0,95770.0,0.73525507]
[1732778710937,0.052153,95800.0,95790.0,0.052158]
[1732778711242,0.052153,95799.0,95790.0,0.052158]
[1732778711428,0.052153,95799.0,95790.0,0.30108192]
[1732778711844,0.01943216,95796.0,95790.0,0.052158]
[1732778712143,0.0091283,95791.0,95788.0,0.24892392]
[1732778712439,0.0091283,95791.0,95788.0,0.24292392]
[1732778712641,0.0091283,95791.0,95789.0,0.052158]
[1732778713329,0.0121283,95791.0,95789.0,0.052158]
[1732778713936,0.0071283,95791.0,95789.0,0.052158]
[1732778714241,0.0101283,95791.0,95789.0,0.052158]
[1732778715040,0.0101283,95791.0,95782.0,0.37983703]
[1732778715041,0.0542863,95791.0,95782.0,0.37983703]
[1732778715247,0.0542863,95791.0,95787.0,0.052159]
[1732778716639,0.0021283,95791.0,95787.0,0.052159]
[1732778716944,0.052158,95790.0,95787.0,0.052159]
[1732778717141,0.052159,95789.0,95787.0,0.001]
[1732778717943,0.052159,95789.0,95784.0,0.052161]
[1732778718740,0.052159,95788.0,95784.0,0.052161]
[1732778721051,0.053159,95788.0,95784.0,0.052161]
[1732778721548,0.053159,95788.0,95784.0,0.053161]
[1732778721846,0.05216,95786.0,95784.0,0.053161]
[1732778722545,0.05216,95786.0,95784.0,0.001]
[1732778723141,0.20172,95786.0,95784.0,0.001]
[1732778723550,0.052163,95782.0,95780.0,0.3608]
[1732778724152,0.0311,95781.0,95780.0,0.3608]
[1732778724845,0.0311,95781.0,95770.0,0.0537353]
[1732778725042,0.052166,95775.0,95770.0,0.0537353]
[1732778725246,0.052167,95773.0,95770.0,0.0537353]
[1732778725551,0.0311,95781.0,95770.0,0.0015663]
[1732778725552,0.052168,95772.0,95770.0,0.0015663]
[1732778727245,0.052168,95772.0,95770.0,0.0085663]
[1732778727454,0.052168,95772.0,95770.0,0.0025663]
[1732778728240,0.052168,95772.0,95770.0,0.0065663]
[1732778732845,0.052168,95771.0,95770.0,0.0065663]
[1732778733957,0.51096001,95773.0,95770.0,0.006]
[1732778734152,0.052168,95771.0,95770.0,0.006]
[1732778735043,0.052168,95771.0,95770.0,0.003]
[1732778735247,0.052168,95771.0,95770.0,0.006]
[1732778736648,0.052168,95771.0,95770.0,0.003]
[1732778736956,0.365408,95771.0,95752.0,9.205e-05]
[1732778737155,0.052178,95753.0,95752.0,9.205e-05]
[1732778739456,0.053178,95753.0,95752.0,0.00809205]
[1732778740858,0.054178,95753.0,95752.0,0.00809205]
[1732778742458,0.054178,95753.0,95752.0,0.00209205]
[1732778747060,0.054178,95753.0,95752.0,0.05427105]
[1732778748462,0.054178,95753.0,95752.0,0.00209205]
[1732778753364,0.054178,95753.0,95752.0,0.0156041]
[1732778753564,0.054178,95753.0,95752.0,0.00209205]
[1732778755472,0.054178,95753.0,95752.0,0.06763591]
[1732778755668,0.002,95753.0,95752.0,0.06763591]
[1732778755973,0.1496,95762.0,95754.0,0.052178]
[1732778756166,0.4432618,95770.0,95754.0,0.052178]
[1732778756167,0.1496,95761.0,95754.0,0.052178]
[1732778756374,0.052177,95755.0,95754.0,0.052178]
[1732778757072,0.052177,95755.0,95754.0,0.059178]
[1732778757476,0.052177,95755.0,95754.0,0.053178]
[1732778757875,0.053177,95755.0,95754.0,0.053178]
[1732778758468,0.053177,95755.0,95754.0,0.056178]
[1732778759164,0.054177,95755.0,95754.0,0.056178]
[1732778759771,0.054177,95755.0,95754.0,0.43032651]
[1732778760374,0.054177,95755.0,95754.0,0.74148141]
[1732778761163,0.054177,95755.0,95754.0,0.74143704]
[1732778761371,0.054177,95755.0,95754.0,0.74244173]
[1732778761579,0.054177,95755.0,95754.0,0.06948214]
[1732778761880,0.07316006,95755.0,95754.0,0.01]
[1732778765677,0.07316006,95755.0,95754.0,0.02340479]
[1732778766082,0.07316006,95755.0,95754.0,0.01]
[1732778768384,0.07316006,95755.0,95754.0,0.02345252]
[1732778769180,0.07316006,95755.0,95754.0,0.01]
[1732778769371,0.07316006,95755.0,95754.0,0.02354849]
[1732778769876,0.38648006,95755.0,95754.0,0.01]
[1732778770177,0.052179,95751.0,95750.0,0.00012601]
[1732778770381,0.412979,95751.0,95750.0,0.00012601]
[1732778770581,0.726299,95751.0,95750.0,0.00012601]
[1732778771281,0.726299,95751.0,95750.0,0.00312601]
[1732778771282,0.727299,95751.0,95750.0,0.00312601]
[1732778771476,0.728299,95751.0,95750.0,0.01012601]
[1732778772587,0.728299,95751.0,95750.0,0.00412601]
[1732778772788,0.67612,95751.0,95747.0,0.18735978]
[1732778773081,0.67612,95751.0,95741.0,0.25137959]
[1732778773082,0.3628,95751.0,95745.0,0.18735978]
[1732778773285,0.052182,95746.0,95745.0,0.18735978]
[1732778773586,0.201702,95746.0,95745.0,0.18735978]
[1732778774183,0.052182,95745.0,95744.0,0.18735978]
[1732778774586,0.052182,95745.0,95741.0,0.00156655]
[1732778774587,0.052184,95742.0,95741.0,0.00156655]
[1732778774774,0.412984,95742.0,95741.0,0.00156655]
[1732778776882,0.413984,95742.0,95741.0,0.00156655]
[1732778777295,0.414984,95742.0,95741.0,0.00156655]
[1732778777887,0.052188,95735.0,95734.0,0.24981304]
[1732778778086,0.201708,95735.0,95734.0,0.24981304]
[1732778779283,0.202708,95735.0,95734.0,0.24981304]
[1732778780586,0.203708,95735.0,95734.0,0.24981304]
[1732778780778,0.203708,95735.0,95734.0,0.26388512]
[1732778780980,0.203708,95735.0,95734.0,0.01407208]
[1732778781580,0.203708,95735.0,95734.0,0.01407152]
[1732778783493,0.203708,95735.0,95733.0,8.008e-05]
[1732778785189,0.202708,95735.0,95733.0,8.008e-05]
[1732778785394,0.203708,95735.0,95733.0,0.18717812]
[1732778786093,0.203708,95735.0,95734.0,0.18709804]
[1732778786394,0.203708,95735.0,95733.0,8.008e-05]
[1732778787289,0.202708,95735.0,95733.0,8.008e-05]
[1732778787488,0.15152,95735.0,95732.0,0.2435982]
[1732778787683,0.052189,95733.0,95732.0,0.2435982]
[1732778788085,0.052189,95733.0,95732.0,0.0142427]
[1732778788381,0.052189,95733.0,95730.0,0.052191]
[1732778788585,0.052189,95733.0,95731.0,0.01424417]
[1732778788786,0.15152,95735.0,95730.0,0.05226476]
[1732778788984,0.05219,95731.0,95730.0,0.05226476]
[1732778789482,0.05219,95731.0,95730.0,0.06650391]
[1732778789683,0.05219,95731.0,95730.0,0.01431291]
[1732778789987,0.05219,95731.0,95730.0,7.376e-05]
[1732778789988,0.20175,95731.0,95730.0,7.376e-05]
[1732778790389,0.20275,95731.0,95730.0,7.376e-05]
[1732778791504,0.20275,95731.0,95730.0,0.01435193]
[1732778791795,0.20275,95731.0,95730.0,7.376e-05]
[1732778791998,0.20375,95731.0,95730.0,7.376e-05]
[1732778792193,0.20375,95731.0,95730.0,0.01439502]
[1732778793096,0.22259995,95731.0,95730.0,0.01439502]
[1732778793294,0.22259995,95731.0,95729.0,0.11375954]
[1732778793295,0.3134,95730.0,95729.0,0.11375954]
[1732778793497,0.3134,95730.0,95704.0,0.31215959]
[1732778793498,0.052204,95706.0,95702.0,0.31215959]
[1732778793689,0.201764,95706.0,95700.0,0.34415959]
[1732778793893,0.201764,95706.0,95705.0,0.01609361]
[1732778794294,0.201764,95706.0,95705.0,0.00156724]
[1732778794803,0.202764,95706.0,95705.0,0.00156724]
[1732778795006,0.22161777,95706.0,95705.0,0.00156724]
[1732778796202,0.22261777,95706.0,95705.0,0.00156724]
[1732778799201,0.22261777,95706.0,95687.0,0.083914]
[1732778799202,0.48389377,95706.0,95687.0,0.0317]
[1732778799399,0.052212,95691.0,95688.0,0.01450419]
[1732778799604,0.14956,95690.0,95687.0,0.0317]
[1732778799902,0.14956,95690.0,95688.0,0.052214]
[1732778800406,0.201773,95690.0,95688.0,0.052214]
[1732778801302,0.202773,95690.0,95688.0,0.052214]
[1732778801498,0.15056,95690.0,95689.0,0.3608]
[1732778801708,0.15056,95690.0,95689.0,0.37540361]
[1732778802098,0.14952,95690.0,95689.0,0.37540361]
[1732778802502,0.14952,95690.0,95689.0,0.36940361]
[1732778802709,0.052212,95691.0,95689.0,0.36940361]
[1732778802893,0.15052,95690.0,95689.0,0.407013]
[1732778803093,0.15052,95690.0,95689.0,0.42151544]
[1732778803301,0.15152,95690.0,95689.0,0.42151544]
[1732778803801,0.15052,95690.0,95689.0,0.42151544]
[1732778805693,0.15152,95690.0,95689.0,0.42151544]
[1732778808499,0.203732,95690.0,95689.0,0.42151544]
[1732778809099,0.203732,95690.0,95689.0,0.407013]
[1732778809403,0.203732,95690.0,95689.0,0.42146626]
[1732778809606,0.203732,95690.0,95689.0,0.42146589]
[1732778811208,0.203732,95690.0,95689.0,0.42145713]
[1732778811607,0.203732,95690.0,95689.0,0.407013]
[1732778811907,0.203732,95690.0,95689.0,0.42745807]
[1732778813206,0.203732,95690.0,95689.0,0.42747785]
[1732778816413,0.203732,95690.0,95689.0,0.413013]
[1732778816612,0.203732,95690.0,95689.0,0.42754466]
[1732778817509,0.203732,95690.0,95689.0,0.42154466]
[1732778818705,0.203732,95690.0,95689.0,0.06074466]
[1732778818910,0.203732,95690.0,95689.0,0.42154466]
[1732778819599,0.203732,95690.0,95689.0,0.44481013]
[1732778819910,0.203732,95690.0,95689.0,0.42154466]
[1732778820213,0.203732,95690.0,95689.0,0.4447565]
[1732778822108,0.203732,95690.0,95689.0,0.86504311]
[1732778822315,0.203732,95690.0,95689.0,0.82729961]
[1732778822519,0.203732,95690.0,95689.0,0.86515663]
[1732778823815,0.203732,95690.0,95689.0,0.86520969]
[1732778824309,0.203732,95690.0,95689.0,0.50440969]
[1732778825110,0.203732,95690.0,95689.0,0.87808431]
[1732778826218,0.203732,95690.0,95689.0,0.8778566]
[1732778827105,0.203732,95690.0,95689.0,0.50358411]
[1732778827507,0.054212,95690.0,95689.0,0.50358411]
[1732778827704,0.203732,95690.0,95689.0,0.50354889]
[1732778827911,0.201732,95690.0,95689.0,0.50354889]
[1732778828109,0.203732,95690.0,95689.0,0.50354889]
[1732778829917,0.203732,95690.0,95689.0,0.50343371]
[1732778830217,0.054212,95690.0,95689.0,0.50343371]
[1732778830419,0.203732,95690.0,95689.0,0.50343371]
[1732778831626,0.203732,95690.0,95689.0,0.86423371]
[1732778831808,0.203732,95690.0,95689.0,0.82658656]
[1732778832008,0.203732,95690.0,95689.0,0.86398532]
[1732778832512,0.203732,95690.0,95689.0,0.85798532]
[1732778833720,0.203732,95690.0,95689.0,0.49718532]
[1732778833919,0.203732,95690.0,95689.0,0.85798532]
[1732778836215,0.203732,95690.0,95689.0,0.85775272]
[1732778839923,0.203732,95690.0,95689.0,0.49695272]
[1732778840721,0.203732,95690.0,95689.0,0.45673972]
[1732778841230,0.235032,95690.0,95689.0,0.45673972]
[1732778841524,0.235032,95690.0,95689.0,0.43386824]
[1732778842920,0.235032,95690.0,95689.0,0.41957356]
[1732778843119,0.235032,95690.0,95689.0,0.43384761]
[1732778843322,0.235032,95690.0,95689.0,0.43383833]
[1732778843626,0.235032,95690.0,95689.0,0.48605133]
[1732778844416,0.235032,95690.0,95689.0,0.48228901]
[1732778846421,0.235032,95690.0,95689.0,0.74285746]
[1732778846624,0.235032,95690.0,95689.0,0.01424578]
[1732778846921,0.235032,95690.0,95689.0,0.43921646]
[1732778847224,0.235032,95690.0,95689.0,0.75202709]
[1732778847419,0.235032,95690.0,95689.0,0.74602922]
[1732778848323,0.235032,95690.0,95689.0,0.32105641]
[1732778849822,0.235032,95690.0,95689.0,0.74601296]
[1732778850017,0.235032,95690.0,95689.0,0.73776718]
[1732778850617,0.235032,95690.0,95689.0,0.31281063]
[1732778851519,0.18282,95690.0,95687.0,0.31281063]
[1732778851720,0.052214,95688.0,95687.0,0.31281063]
[1732778851919,0.052214,95688.0,95687.0,0.73781271]
[1732778852531,0.052214,95688.0,95687.0,0.31281063]
[1732778853327,0.413014,95688.0,95686.0,0.31284358]
[1732778853517,0.413014,95688.0,95673.0,0.06525742]
[1732778853518,0.414014,95688.0,95681.0,0.31284358]
[1732778853718,0.414014,95688.0,95673.0,0.37562784]
[1732778853719,0.414014,95688.0,95686.0,0.25032847]
[1732778853928,0.052216,95684.0,95683.0,0.25032847]
[1732778854127,0.414014,95688.0,95682.0,0.25032847]
[1732778854128,0.052216,95683.0,95682.0,0.25032847]
[1732778854326,0.052217,95681.0,95680.0,0.25032847]
[1732778854627,0.201657,95681.0,95680.0,0.25032847]
[1732778855221,0.052221,95675.0,95674.0,0.25032847]
[1732778855423,0.052221,95675.0,95668.0,0.31441124]
[1732778855424,0.052224,95669.0,95668.0,0.00156766]
[1732778855730,0.201664,95669.0,95668.0,0.00156766]
[1732778856431,0.14944,95669.0,95661.0,0.31284358]
[1732778856627,0.14944,95669.0,95667.0,0.2500818]
[1732778857018,0.14944,95669.0,95666.0,0.2500818]
[1732778857019,0.052224,95668.0,95666.0,0.2500818]
[1732778857221,0.052226,95665.0,95664.0,0.2500818]
[1732778857624,0.05223,95658.0,95657.0,0.31284358]
[1732778857929,0.14944,95658.0,95657.0,0.42449489]
[1732778858136,0.14944,95658.0,95657.0,0.73697469]
[1732778858323,0.14944,95658.0,95656.0,0.6732798]
[1732778858324,0.05223,95657.0,95656.0,0.6732798]
[1732778858627,0.052231,95656.0,95655.0,0.052232]
[1732778858819,0.052231,95656.0,95655.0,0.03397525]
[1732778859531,0.052231,95656.0,95655.0,0.04822816]
[1732778860131,0.001,95656.0,95655.0,0.01425157]
[1732778860326,0.054231,95656.0,95655.0,0.26404678]
[1732778860628,0.054231,95656.0,95652.0,0.24981417]
[1732778860629,0.002,95656.0,95652.0,0.24981417]
[1732778860931,0.052233,95653.0,95652.0,0.24981417]
[1732778861136,0.002,95656.0,95651.0,0.24981417]
[1732778861331,0.052233,95652.0,95650.0,0.24981417]
[1732778861518,0.002,95656.0,95651.0,0.01429209]
[1732778861722,0.001,95656.0,95654.0,0.24971911]
[1732778861924,0.001,95656.0,95652.0,0.01429209]
[1732778861925,0.054231,95656.0,95655.0,0.01429209]
[1732778862126,0.07210336,95656.0,95655.0,0.01429209]
[1732778862328,0.07210336,95656.0,95645.0,0.3608]
[1732778862329,0.43290336,95656.0,95646.0,0.24971911]
[1732778862533,0.43290336,95656.0,95645.0,0.3548]
[1732778862534,0.052237,95646.0,95645.0,0.3548]
[1732778862732,0.201557,95646.0,95645.0,0.3548]
[1732778863436,0.14932,95646.0,95641.0,0.052239]
[1732778863733,0.052239,95642.0,95639.0,0.24970673]
[1732778863929,0.052239,95642.0,95640.0,0.01419653]
[1732778864229,0.052239,95642.0,95638.0,0.24970673]
[1732778864433,0.052239,95642.0,95639.0,0.01417236]
[1732778864640,0.052239,95642.0,95637.0,0.66274773]
[1732778864937,0.05224,95641.0,95638.0,0.04815345]
[1732778865129,0.05224,95641.0,95639.0,0.01417266]
[1732778865331,0.05224,95640.0,95637.0,0.66366773]
[1732778865638,0.05224,95640.0,95638.0,0.03398039]
[1732778865827,0.05224,95640.0,95637.0,0.66366773]
[1732778866131,0.05224,95640.0,95638.0,0.08622139]
[1732778866429,0.0326,95655.0,95638.0,0.08622139]
[1732778866430,0.002,95641.0,95639.0,0.08622021]
[1732778866640,0.002,95641.0,95640.0,0.03397912]
[1732778866823,0.15132,95641.0,95640.0,0.03397912]
[1732778867035,0.15132,95641.0,95640.0,0.03397837]
[1732778867938,0.001,95641.0,95640.0,0.03397837]
[1732778868123,0.14932,95641.0,95640.0,0.08621837]
[1732778868535,0.14932,95641.0,95640.0,0.10010793]
[1732778868739,0.002,95641.0,95640.0,0.10010793]
[1732778868938,0.15132,95641.0,95640.0,0.10010793]
[1732778869433,0.002,95641.0,95640.0,0.10010793]
[1732778869741,0.002,95641.0,95640.0,0.08621837]
[1732778869742,0.15132,95641.0,95640.0,0.08621837]
[1732778871232,0.002,95641.0,95640.0,0.08621837]
[1732778871936,0.002,95641.0,95640.0,0.3359251]
[1732778872931,0.002,95641.0,95640.0,0.3158606]
[1732778873136,0.15132,95641.0,95640.0,0.30194673]
[1732778873331,0.15132,95641.0,95640.0,0.08621724]
[1732778873928,0.15132,95641.0,95640.0,0.07939205]
[1732778874631,0.15132,95641.0,95640.0,0.05224]
[1732778875046,0.15132,95641.0,95640.0,0.08621724]
[1732778875331,0.15132,95641.0,95640.0,0.10030308]
[1732778876435,0.002,95641.0,95640.0,0.10030308]
[1732778877532,0.002,95641.0,95640.0,0.09430308]
[1732778877733,0.002,95641.0,95640.0,0.45510308]
[1732778879931,0.002,95641.0,95640.0,0.43419402]
[1732778880132,0.002,95641.0,95640.0,0.45510311]
[1732778880337,0.002,95641.0,95640.0,0.76758291]
[1732778880538,0.14932,95641.0,95640.0,0.89142644]
[1732778881040,0.14932,95641.0,95640.0,1.20357838]
[1732778881242,0.14932,95641.0,95640.0,0.89142644]
[1732778882441,0.14932,95641.0,95640.0,0.87059261]
[1732778882633,0.14932,95641.0,95640.0,0.89150167]
[1732778883235,0.14932,95641.0,95640.0,0.91416727]
[1732778883741,0.082572,95650.0,95640.0,0.85212613]
[1732778883932,0.082572,95650.0,95649.0,0.412955]
[1732778884243,0.201554,95650.0,95649.0,0.42711612]
[1732778884835,0.202554,95650.0,95649.0,0.42711612]
[1732778885944,0.202554,95650.0,95649.0,0.42710521]
[1732778886243,0.203554,95650.0,95649.0,0.42710521]
[1732778886636,0.202554,95650.0,95649.0,0.42710521]
[1732778886931,0.203554,95650.0,95649.0,0.42710521]
[1732778889337,0.203554,95650.0,95649.0,0.7255608]
[1732778889632,0.203554,95650.0,95649.0,0.7395408]
[1732778890234,0.203554,95650.0,95649.0,1.16079746]
[1732778890542,0.203554,95650.0,95649.0,0.84819166]
[1732778891142,0.203594,95650.0,95649.0,0.84819166]
[1732778891336,0.15136,95650.0,95649.0,0.84822031]
[1732778891938,0.15136,95650.0,95649.0,0.48750031]
[1732778892539,0.15136,95650.0,95649.0,0.48150031]
[1732778892738,0.15136,95650.0,95649.0,0.4814113]
[1732778893039,0.203594,95650.0,95649.0,0.4351763]
[1732778893347,0.235294,95650.0,95649.0,0.4351763]
[1732778893540,0.235294,95650.0,95649.0,0.4874113]
[1732778893541,0.085934,95650.0,95649.0,0.4874113]
[1732778893746,0.203354,95650.0,95649.0,0.4874003]
[1732778897439,0.054234,95650.0,95649.0,0.4874003]
[1732778897632,0.203354,95650.0,95649.0,0.4874003]
[1732778898248,0.002,95650.0,95649.0,0.4874003]
[1732778898444,0.002,95650.0,95649.0,1.02045126]
[1732778898945,0.002,95650.0,95649.0,1.06422647]
[1732778899145,0.002,95650.0,95649.0,1.07727959]
[1732778899344,0.15112,95650.0,95649.0,1.06422647]
[1732778899545,0.002,95650.0,95649.0,0.53294354]
[1732778899744,0.203354,95650.0,95649.0,0.81143087]
[1732778899946,0.203354,95650.0,95649.0,0.7347712]
[1732778900243,0.052237,95645.0,95644.0,0.31348589]
[1732778900445,0.052237,95645.0,95633.0,0.36172]
[1732778900446,0.43916,95648.0,95642.0,0.31348589]
[1732778900650,0.491395,95648.0,95647.0,0.25074543]
[1732778901447,0.491395,95648.0,95640.0,0.05224]
[1732778901448,0.052236,95647.0,95646.0,0.25074543]
[1732778901750,0.052236,95647.0,95640.0,0.05224]
[1732778901751,0.052239,95641.0,95640.0,0.05224]
[1732778901947,0.201359,95641.0,95640.0,0.06618626]
[1732778903249,0.202359,95641.0,95640.0,0.06618626]
[1732778903452,0.203359,95641.0,95640.0,0.06618626]
[1732778904440,0.203359,95641.0,95640.0,0.01394626]
[1732778904646,0.203359,95641.0,95638.0,0.31348589]
[1732778904647,0.05224,95639.0,95638.0,0.31348589]
[1732778905451,0.052241,95637.0,95636.0,0.31348589]
[1732778905851,0.052241,95637.0,95636.0,0.32760784]
[1732778906351,0.052241,95637.0,95636.0,0.31348589]
[1732778906547,0.052243,95635.0,95634.0,0.36572889]
[1732778906748,0.052243,95635.0,95634.0,0.37984908]
[1732778907339,0.052243,95635.0,95634.0,0.06636319]
[1732778907545,0.052243,95635.0,95634.0,0.06036319]
[1732778908755,0.053243,95635.0,95634.0,0.06036319]
[1732778909254,0.054243,95635.0,95634.0,0.06036319]
[1732778909453,0.054243,95635.0,95634.0,0.01412019]
[1732778909643,0.01807623,95639.0,95634.0,0.01412019]
[1732778909843,0.0319,95640.0,95633.0,0.67528589]
[1732778909844,0.052243,95634.0,95633.0,0.67528589]
[1732778910047,0.052243,95634.0,95633.0,0.37500375]
[1732778911553,0.052243,95634.0,95633.0,0.3608]
[1732778912348,0.001,95634.0,95628.0,0.31348589]
[1732778912552,0.0315,95633.0,95627.0,0.31298878]
[1732778912751,0.14916,95632.0,95628.0,0.01422464]
[1732778912955,0.052246,95628.0,95627.0,0.31298878]
[1732778913153,0.052246,95628.0,95627.0,0.44078177]
[1732778913347,0.052246,95628.0,95627.0,0.75374975]
[1732778913549,0.052246,95628.0,95627.0,0.32729647]
[1732778913745,0.052246,95628.0,95627.0,0.75371258]
[1732778913949,0.052246,95628.0,95627.0,0.4407446]
[1732778914463,0.052246,95628.0,95627.0,0.32929612]
[1732778914464,0.054246,95628.0,95627.0,0.32929612]
[1732778914656,0.054246,95628.0,95627.0,0.75614927]
[1732778914959,0.054246,95628.0,95627.0,0.32929612]
[1732778915153,0.054246,95628.0,95627.0,0.78043143]
[1732778915350,0.054246,95628.0,95627.0,0.4674638]
[1732778915550,0.054246,95628.0,95627.0,0.78039518]
[1732778916161,0.054246,95628.0,95627.0,0.78034464]
[1732778916359,0.002,95628.0,95627.0,0.78033496]
[1732778916558,0.15116,95628.0,95627.0,0.47063564]
[1732778916858,0.15116,95628.0,95627.0,0.54512376]
[1732778917054,0.11848307,95628.0,95627.0,0.54512376]
[1732778917451,0.14916,95628.0,95627.0,0.59737076]
[1732778917655,0.052243,95634.0,95631.0,0.052244]
[1732778917858,0.052243,95634.0,95632.0,0.03810703]
[1732778917859,0.14916,95633.0,95632.0,0.03810703]
[1732778919051,0.14916,95633.0,95632.0,0.03778845]
[1732778919251,0.15016,95633.0,95632.0,0.03878845]
[1732778919655,0.15116,95633.0,95632.0,0.01632849]
[1732778919848,0.15116,95633.0,95632.0,0.03998072]
[1732778920257,0.15116,95633.0,95632.0,0.01632849]
[1732778921662,0.002,95633.0,95632.0,0.01632849]
[1732778921972,0.00056001,95648.0,95632.0,0.78349109]
[1732778922154,0.14916,95647.0,95646.0,0.052242]
[1732778922351,0.14916,95647.0,95646.0,0.06657049]
[1732778922656,0.00056001,95648.0,95646.0,0.08438824]
[1732778922856,0.14892,95647.0,95646.0,0.046242]
[1732778923053,0.14892,95647.0,95646.0,0.06101951]
[1732778923259,0.14992,95647.0,95646.0,0.06201951]